fUSD/lending_fUSD_20240708
["ID","MTS","AMOUNT","RATE_DAILY","PERIOD"]
[331457108,1720424810017,-498.48115019,0.00034038,31]
[331457109,1720424810054,-597.71,0.00034038,34]
[331457110,1720424810091,-1023.2,0.00034038,34]
[331457111,1720424810128,-500.0,0.00034038,34]
[331457112,1720424810164,-1954.16,0.00034038,52]
[331457113,1720424810202,-500.0,0.00034038,44]
[331457114,1720424810237,-597.71,0.00034038,35]
[331457115,1720424810274,-1954.32919913,0.00034038,53]
[331457116,1720424810309,-500.0,0.00034038,35]
[331457117,1720424810346,-597.71,0.00034038,36]
[331457118,1720424810382,-500.0,0.00034038,45]
[331457119,1720424810416,-1023.2,0.00034038,35]
[331457120,1720424810659,-500.0,0.00034038,36]
[331457121,1720424810696,-597.71,0.00034038,37]
[331457122,1720424810735,-229.17302962,0.00034038,46]
[331457123,1720424810774,-1023.2,0.00034038,36]
[331457124,1720424810809,-500.0,0.00034038,37]
[331457125,1720424810844,-597.71,0.00034038,38]
[331457126,1720424810879,-1153.51,0.00034038,30]
[331457127,1720424810915,-1023.2,0.00034038,37]
[331457128,1720424810963,-500.0,0.00034038,38]
[331457129,1720424811000,-597.71,0.00034038,39]
[331457130,1720424811035,-1153.51,0.00034038,31]
[331457131,1720424811070,-500.0,0.00034038,39]
[331457132,1720424811106,-597.71,0.00034038,40]
[331457133,1720424811146,-1153.51,0.00034038,32]
[331457134,1720424811190,-500.0,0.00034038,40]
[331457135,1720424811230,-1153.51,0.00034038,33]
[331457136,1720424811268,-500.0,0.00034038,41]
[331457137,1720424811307,-1023.2,0.00034038,38]
[331457138,1720424811345,-597.71,0.00034038,41]
[331457139,1720424811383,-618.39134993,0.00034038,42]
[331457140,1720424811420,-1023.2,0.00034038,39]
[331457141,1720424811471,-1153.51,0.00034038,34]
[331457142,1720424811508,-597.71,0.00034038,42]
[331457143,1720424811544,-1023.2,0.00034038,40]
[331457144,1720424811581,-1153.51,0.00034038,35]
[331457145,1720424811619,-597.71,0.00034038,43]
[331457146,1720424811656,-1153.51,0.00034038,36]
[331457147,1720424811695,-1023.2,0.00034038,41]
[331457148,1720424811731,-597.71,0.00034038,44]
[331457149,1720424811767,-1023.2,0.00034038,42]
[331457150,1720424811803,-1153.51,0.00034038,37]
[331457151,1720424811839,-597.71,0.00034038,45]
[331457152,1720424811876,-1023.2,0.00034038,43]
[331457153,1720424811913,-597.71,0.00034038,46]
[331457154,1720424811959,-1153.51,0.00034038,38]
[331457155,1720424811998,-1023.2,0.00034038,44]
[331457156,1720424812034,-597.71,0.00034038,47]
[331457157,1720424812069,-1153.51,0.00034038,39]
[331457158,1720424812104,-1023.2,0.00034038,45]
[331457159,1720424812139,-500.0,0.00034038,30]
[331457160,1720424812180,-597.71,0.00034038,48]
[331457161,1720424812215,-1153.51,0.00034038,40]
[331457162,1720424812251,-500.0,0.00034038,31]
[331457163,1720424812287,-1153.51,0.00034038,41]
[331457164,1720424812324,-597.71,0.00034038,49]
[331457165,1720424812360,-500.0,0.00034038,32]
[331457166,1720424812397,-1023.2,0.00034038,46]
[331457167,1720424812435,-597.71,0.00034038,50]
[331457168,1720424812472,-1153.51,0.00034038,42]
[331457169,1720424812508,-500.0,0.00034038,33]
[331457170,1720424812545,-597.71,0.00034038,51]
[331457171,1720424812580,-1153.51,0.00034038,43]
[331457172,1720424812615,-500.0,0.00034038,34]
[331457173,1720424812651,-1023.2,0.00034038,47]
[331457174,1720424812687,-597.71,0.00034038,52]
[331457175,1720424812721,-1153.51,0.00034038,44]
[331457176,1720424812758,-500.0,0.00034038,35]
[331457177,1720424812819,-597.73425424,0.00034038,53]
[331457178,1720424812854,-1153.51,0.00034038,45]
[331457179,1720424812889,-1023.2,0.00034038,48]
[331457180,1720424812928,-2169.17,0.00034038,30]
[331457181,1720424812965,-500.0,0.00034038,36]
[331457182,1720424813001,-1153.51,0.00034038,46]
[331457183,1720424813036,-1023.2,0.00034038,49]
[331457184,1720424813070,-2169.17,0.00034038,31]
[331457185,1720424813103,-500.0,0.00034038,30]
[331457186,1720424813136,-1153.51,0.00034038,47]
[331457187,1720424813171,-1023.2,0.00034038,50]
[331457188,1720424813211,-2169.17,0.00034038,32]
[331457189,1720424813247,-500.0,0.00034038,31]
[331457190,1720424813282,-1023.2,0.00034038,51]
[331457191,1720424813318,-2169.17,0.00034038,33]
[331457192,1720424813353,-331.43264882,0.00034038,32]
[331457193,1720424813388,-1153.51,0.00034038,48]
[331457194,1720424813424,-500.0,0.00034038,37]
[331457195,1720424813461,-1023.2,0.00034038,52]
[331457196,1720424813497,-2169.17,0.00034038,34]
[331457197,1720424813539,-1023.2,0.00034038,53]
[331457198,1720424813582,-500.0,0.00034038,38]
[331457199,1720424813621,-1153.51,0.00034038,49]
[331457200,1720424813658,-2169.17,0.00034038,35]
[331457201,1720424813698,-500.0,0.00034038,39]
[331457202,1720424813737,-1153.51,0.00034038,50]
[331457203,1720424813773,-2169.17,0.00034038,36]
[331457204,1720424813809,-500.0,0.00034038,40]
[331457205,1720424813846,-1246.01,0.00034038,30]
[331457206,1720424813882,-1153.51,0.00034038,51]
[331457207,1720424813920,-2169.17,0.00034038,37]
[331457208,1720424813959,-500.0,0.00034038,41]
[331457209,1720424813995,-1246.01,0.00034038,31]
[331457210,1720424814030,-1153.51,0.00034038,52]
[331457211,1720424814066,-2169.17,0.00034038,38]
[331457212,1720424814102,-1246.01,0.00034038,32]
[331457213,1720424814139,-1153.6690164,0.00034038,53]
[331457214,1720424814176,-2169.17,0.00034038,39]
[331457215,1720424814214,-1246.01,0.00034038,33]
[331457216,1720424814251,-2169.17,0.00034038,40]
[331457217,1720424814288,-500.0,0.00034038,42]
[331457218,1720424814324,-300.19493554,0.00034038,30]
[331457219,1720424814362,-1246.01,0.00034038,34]
[331457220,1720424814400,-2169.17,0.00034038,41]
[331457221,1720424814440,-500.0,0.00034038,43]
[331457222,1720424814480,-1246.01,0.00034038,35]
[331457223,1720424814519,-2169.17,0.00034038,42]
[331457224,1720424814760,-500.0,0.00034038,44]
[331457225,1720424814800,-2169.17,0.00034038,43]
[331457226,1720424814840,-500.0,0.00034038,45]
[331457227,1720424814878,-500.0,0.00034038,30]
[331457228,1720424814917,-1246.01,0.00034038,36]
[331457229,1720424814968,-2169.17,0.00034038,44]
[331457230,1720424815010,-2169.17,0.00034038,45]
[331457231,1720424815049,-500.0,0.00034038,31]
[331457232,1720424815088,-1246.01,0.00034038,37]
[331457233,1720424815126,-500.0,0.00034038,46]
[331457234,1720424815165,-2169.17,0.00034038,46]
[331457235,1720424815207,-683.08,0.00034038,30]
[331457236,1720424815245,-500.0,0.00034038,32]
[331457237,1720424815284,-1246.01,0.00034038,38]
[331457238,1720424815322,-500.0,0.00034038,47]
[331457239,1720424815360,-2169.17,0.00034038,47]
[331457240,1720424815398,-683.08,0.00034038,31]
[331457241,1720424815438,-500.0,0.00034038,48]
[331457242,1720424815478,-1246.01,0.00034038,39]
[331457243,1720424815518,-500.0,0.00034038,33]
[331457244,1720424815556,-2169.17,0.00034038,48]
[331457245,1720424815594,-683.08,0.00034038,32]
[331457246,1720424815638,-500.0,0.00034038,34]
[331457247,1720424815679,-1246.01,0.00034038,40]
[331457248,1720424815719,-500.0,0.00034038,49]
[331457249,1720424815758,-683.08,0.00034038,33]
[331457250,1720424815795,-2169.17,0.00034038,49]
[331457251,1720424815832,-1246.01,0.00034038,41]
[331457252,1720424815869,-500.0,0.00034038,35]
[331457253,1720424815908,-500.0,0.00034038,50]
[331457254,1720424815949,-683.08,0.00034038,34]
[331457255,1720424815987,-2169.17,0.00034038,50]
[331457256,1720424816024,-500.0,0.00034038,51]
[331457257,1720424816061,-1246.01,0.00034038,42]
[331457258,1720424816099,-500.0,0.00034038,36]
[331457259,1720424816135,-683.08,0.00034038,35]
[331457260,1720424816172,-2169.17,0.00034038,51]
[331457261,1720424816210,-278.61873925,0.00034038,52]
[331457262,1720424816248,-500.0,0.00034038,30]
[331457263,1720424816285,-1246.01,0.00034038,43]
[331457264,1720424816322,-2169.17,0.00034038,52]
[331457265,1720424816359,-500.0,0.00034038,31]
[331457266,1720424816398,-1246.01,0.00034038,44]
[331457267,1720424816438,-500.0,0.00034038,37]
[331457268,1720424816477,-2169.3923748,0.00034038,53]
[331457269,1720424816516,-683.08,0.00034038,36]
[331457270,1720424816551,-1246.01,0.00034038,45]
[331457271,1720424816587,-500.0,0.00034038,32]
[331457272,1720424816623,-500.0,0.00034038,33]
[331457273,1720424816659,-683.08,0.00034038,37]
[331457274,1720424816696,-1246.01,0.00034038,46]
[331457275,1720424816734,-500.0,0.00034038,38]
[331457276,1720424816771,-500.0,0.00034038,34]
[331457277,1720424816807,-1246.01,0.00034038,47]
[331457278,1720424816844,-500.0,0.00034038,39]
[331457279,1720424816879,-500.0,0.00034038,35]
[331457280,1720424816916,-1246.01,0.00034038,48]
[331457281,1720424816955,-683.08,0.00034038,38]
[331457282,1720424816992,-500.0,0.00034038,40]
[331457283,1720424817032,-1246.01,0.00034038,49]
[331457284,1720424817070,-500.0,0.00034038,36]
[331457285,1720424817106,-683.08,0.00034038,39]
[331457286,1720424817143,-500.0,0.00034038,37]
[331457287,1720424817178,-1246.01,0.00034038,50]
[331457288,1720424817214,-683.08,0.00034038,40]
[331457289,1720424817251,-500.0,0.00034038,41]
[331457290,1720424817287,-1246.01,0.00034038,51]
[331457291,1720424817324,-500.0,0.00034038,38]
[331457292,1720424817360,-683.08,0.00034038,41]
[331457293,1720424817396,-500.0,0.00034038,42]
[331457294,1720424817432,-1246.01,0.00034038,52]
[331457295,1720424817467,-500.0,0.00034038,39]
[331457296,1720424817502,-683.08,0.00034038,42]
[331457297,1720424817536,-500.0,0.00034038,43]
[331457298,1720424817572,-1246.05241928,0.00034038,53]
[331457299,1720424817607,-500.0,0.00034038,40]
[331457300,1720424817642,-683.08,0.00034038,43]
[331457301,1720424817678,-500.0,0.00034038,44]
[331457302,1720424817714,-622.6692057,0.00034038,41]
[331457303,1720424817749,-500.0,0.00034038,45]
[331457304,1720424817784,-683.08,0.00034038,44]
[331457305,1720424817818,-500.0,0.00034038,46]
[331457306,1720424817852,-683.08,0.00034038,45]
[331457307,1720424817887,-537.18503062,0.00034038,47]
[331457308,1720424817931,-683.08,0.00034038,46]
[331457309,1720424817973,-683.08,0.00034038,47]
[331457310,1720424818010,-683.08,0.00034038,48]
[331457311,1720424818046,-683.08,0.00034038,49]
[331457312,1720424818082,-500.0,0.00034038,30]
[331457313,1720424818118,-689.02,0.00034038,30]
[331457314,1720424818155,-683.08,0.00034038,50]
[331457315,1720424818193,-500.0,0.00034038,31]
[331457316,1720424818230,-689.02,0.00034038,31]
[331457317,1720424818266,-683.08,0.00034038,51]
[331457318,1720424818303,-500.0,0.00034038,32]
[331457319,1720424818340,-689.02,0.00034038,32]
[331457320,1720424818377,-683.08,0.00034038,52]
[331457321,1720424818413,-689.02,0.00034038,33]
[331457322,1720424818450,-908.94,0.00034038,30]
[331457323,1720424818486,-500.0,0.00034038,33]
[331457324,1720424818522,-689.02,0.00034038,34]
[331457325,1720424818560,-683.13614241,0.00034038,53]
[331457326,1720424818601,-908.94,0.00034038,31]
[331457327,1720424818639,-500.0,0.00034038,34]
[331457328,1720424818870,-689.02,0.00034038,35]
[331457329,1720424818907,-908.94,0.00034038,32]
[331457330,1720424818946,-689.02,0.00034038,36]
[331457331,1720424818983,-500.0,0.00034038,30]
[331457332,1720424819019,-908.94,0.00034038,33]
[331457333,1720424819055,-689.02,0.00034038,37]
[331457334,1720424819092,-500.0,0.00034038,35]
[331457335,1720424819130,-500.0,0.00034038,31]
[331457336,1720424819168,-908.94,0.00034038,34]
[331457337,1720424819207,-689.02,0.00034038,38]
[331457338,1720424819244,-500.0,0.00034038,36]
[331457339,1720424819283,-500.0,0.00034038,32]
[331457340,1720424819327,-908.94,0.00034038,35]
[331457341,1720424819372,-1266.13,0.00034038,30]
[331457342,1720424819417,-689.02,0.00034038,39]
[331457343,1720424819464,-500.0,0.00034038,37]
[331457344,1720424819510,-500.0,0.00034038,33]
[331457345,1720424819556,-1266.13,0.00034038,31]
[331457346,1720424819599,-689.02,0.00034038,40]
[331457347,1720424819638,-500.0,0.00034038,38]
[331457348,1720424819678,-500.0,0.00034038,34]
[331457349,1720424819715,-908.94,0.00034038,36]
[331457350,1720424819756,-1266.13,0.00034038,32]
[331457351,1720424819793,-689.02,0.00034038,41]
[331457352,1720424819829,-500.0,0.00034038,39]
[331457353,1720424819864,-500.0,0.00034038,35]
[331457354,1720424819904,-908.94,0.00034038,37]
[331457355,1720424819942,-1266.13,0.00034038,33]
[331457356,1720424819981,-689.02,0.00034038,42]
[331457357,1720424820018,-500.0,0.00034038,40]
[331457358,1720424820057,-908.94,0.00034038,38]
[331457359,1720424820094,-500.0,0.00034038,36]
[331457360,1720424820130,-1266.13,0.00034038,34]
[331457361,1720424820166,-500.0,0.00034038,41]
[331457362,1720424820203,-908.94,0.00034038,39]
[331457363,1720424820239,-500.0,0.00034038,37]
[331457364,1720424820276,-1266.13,0.00034038,35]
[331457365,1720424820312,-689.02,0.00034038,43]
[331457366,1720424820349,-500.0,0.00034038,42]
[331457367,1720424820387,-908.94,0.00034038,40]
[331457368,1720424820424,-500.0,0.00034038,38]
[331457369,1720424820462,-1266.13,0.00034038,36]
[331457370,1720424820500,-500.0,0.00034038,43]
[331457371,1720424820536,-1514.86,0.00034038,30]
[331457372,1720424820573,-908.94,0.00034038,41]
[331457373,1720424820609,-500.0,0.00034038,39]
[331457374,1720424820648,-1266.13,0.00034038,37]
[331457375,1720424820689,-500.0,0.00034038,44]
[331457376,1720424820732,-1514.86,0.00034038,31]
[331457377,1720424820771,-908.94,0.00034038,42]
[331457378,1720424820808,-689.02,0.00034038,44]
[331457379,1720424820845,-500.0,0.00034038,40]
[331457380,1720424820881,-1266.13,0.00034038,38]
[331457381,1720424820919,-372.40128582,0.00034038,45]
[331457382,1720424820958,-1514.86,0.00034038,32]
[331457383,1720424820995,-689.02,0.00034038,45]
[331457384,1720424821031,-908.94,0.00034038,43]
[331457385,1720424821067,-500.0,0.00034038,41]
[331457386,1720424821102,-1266.13,0.00034038,39]
[331457387,1720424821139,-500.0,0.00034038,30]
[331457388,1720424821176,-1514.86,0.00034038,33]
[331457389,1720424821217,-689.02,0.00034038,46]
[331457390,1720424821257,-908.94,0.00034038,44]
[331457391,1720424821296,-500.0,0.00034038,42]
[331457392,1720424821333,-1266.13,0.00034038,40]
[331457393,1720424821371,-150.22970626,0.00034038,31]
[331457394,1720424821411,-1514.86,0.00034038,34]
[331457395,1720424821450,-689.02,0.00034038,47]
[331457396,1720424821487,-908.94,0.00034038,45]
[331457397,1720424821525,-1266.13,0.00034038,41]
[331457398,1720424821562,-500.0,0.00034038,43]
[331457399,1720424821599,-1514.86,0.00034038,35]
[331457400,1720424821637,-908.94,0.00034038,46]
[331457401,1720424821676,-689.02,0.00034038,48]
[331457402,1720424821720,-1266.13,0.00034038,42]
[331457403,1720424821760,-500.0,0.00034038,44]
[331457404,1720424821802,-1514.86,0.00034038,36]
[331457405,1720424821842,-908.94,0.00034038,47]
[331457406,1720424821882,-689.02,0.00034038,49]
[331457407,1720424821922,-1266.13,0.00034038,43]
[331457408,1720424821970,-1252.26,0.00034038,30]
[331457409,1720424822010,-500.0,0.00034038,45]
[331457410,1720424822049,-908.94,0.00034038,48]
[331457411,1720424822086,-689.02,0.00034038,50]
[331457412,1720424822125,-1252.26,0.00034038,31]
[331457413,1720424822163,-500.0,0.00034038,46]
[331457414,1720424822205,-1266.13,0.00034038,44]
[331457415,1720424822246,-908.94,0.00034038,49]
[331457416,1720424822284,-689.02,0.00034038,51]
[331457417,1720424822323,-500.0,0.00034038,47]
[331457418,1720424822360,-1252.26,0.00034038,32]
[331457419,1720424822397,-1266.13,0.00034038,45]
[331457420,1720424822437,-908.94,0.00034038,50]
[331457421,1720424822473,-500.0,0.00034038,48]
[331457422,1720424822509,-689.02,0.00034038,52]
[331457423,1720424822545,-1514.86,0.00034038,37]
[331457424,1720424822582,-1266.13,0.00034038,46]
[331457425,1720424822620,-908.94,0.00034038,51]
[331457426,1720424822657,-500.0,0.00034038,49]
[331457427,1720424822694,-1514.86,0.00034038,38]
[331457428,1720424822734,-1252.26,0.00034038,33]
[331457429,1720424822772,-689.05890469,0.00034038,53]
[331457430,1720424822810,-214.02623279,0.00034038,30]
[331457431,1720424823064,-908.94,0.00034038,52]
[331457432,1720424823137,-1266.13,0.00034038,47]
[331457433,1720424823173,-500.0,0.00034038,50]
[331457434,1720424823216,-1514.86,0.00034038,39]
[331457435,1720424823256,-1252.26,0.00034038,34]
[331457436,1720424823293,-1266.13,0.00034038,48]
[331457437,1720424823332,-909.03322968,0.00034038,53]
[331457438,1720424823370,-169.82,0.00034038,51]
[331457439,1720424823407,-1514.86,0.00034038,40]
[331457440,1720424823443,-1252.26,0.00034038,35]
[331457441,1720424823479,-1266.13,0.00034038,49]
[331457442,1720424823515,-1514.86,0.00034038,41]
[331457443,1720424823550,-1252.26,0.00034038,36]
[331457444,1720424823584,-1266.13,0.00034038,50]
[331457445,1720424823619,-1514.86,0.00034038,42]
[331457446,1720424823655,-1252.26,0.00034038,37]
[331457447,1720424823692,-1266.13,0.00034038,51]
[331457448,1720424823728,-584.19,0.00034038,30]
[331457449,1720424823763,-1252.26,0.00034038,38]
[331457450,1720424823799,-584.19,0.00034038,31]
[331457451,1720424823837,-1252.26,0.00034038,39]
[331457452,1720424823875,-1514.86,0.00034038,43]
[331457453,1720424823914,-1266.13,0.00034038,52]
[331457454,1720424823953,-1252.26,0.00034038,40]
[331457455,1720424823990,-1514.86,0.00034038,44]
[331457456,1720424824027,-1397.06,0.00034038,30]
[331457457,1720424824064,-1266.28626831,0.00034038,53]
[331457458,1720424824106,-500.0,0.00034038,30]
[331457459,1720424824144,-584.19,0.00034038,32]
[331457460,1720424824182,-1252.26,0.00034038,41]
[331457461,1720424824220,-1514.86,0.00034038,45]
[331457462,1720424824259,-1397.06,0.00034038,31]
[331457463,1720424824298,-257.54865021,0.00034038,31]
[331457464,1720424824337,-1155.33,0.00034038,30]
[331457465,1720424824376,-584.19,0.00034038,33]
[331457466,1720424824419,-1252.26,0.00034038,42]
[331457467,1720424824461,-1514.86,0.00034038,46]
[331457468,1720424824503,-500.0,0.00034038,30]
[331457469,1720424824544,-1397.06,0.00034038,32]
[331457470,1720424824586,-1155.33,0.00034038,31]
[331457471,1720424824626,-1252.26,0.00034038,43]
[331457472,1720424824663,-500.0,0.00034038,31]
[331457473,1720424824701,-1397.06,0.00034038,33]
[331457474,1720424824738,-1155.33,0.00034038,32]
[331457475,1720424824774,-1252.26,0.00034038,44]
[331457476,1720424824810,-500.0,0.00034038,32]
[331457477,1720424824846,-1514.86,0.00034038,47]
[331457478,1720424824882,-1397.06,0.00034038,34]
[331457479,1720424824924,-1252.26,0.00034038,45]
[331457480,1720424824964,-1155.33,0.00034038,33]
[331457481,1720424825003,-500.0,0.00034038,33]
[331457482,1720424825040,-1514.86,0.00034038,48]
[331457483,1720424825077,-1397.06,0.00034038,35]
[331457484,1720424825116,-1252.26,0.00034038,46]
[331457485,1720424825155,-500.0,0.00034038,34]
[331457486,1720424825194,-1155.33,0.00034038,34]
[331457487,1720424825234,-1514.86,0.00034038,49]
[331457488,1720424825276,-1397.06,0.00034038,36]
[331457489,1720424825319,-1252.26,0.00034038,47]
[331457490,1720424825362,-449.31656941,0.00034038,35]
[331457491,1720424825407,-1155.33,0.00034038,35]
[331457492,1720424825449,-1514.86,0.00034038,50]
[331457493,1720424825488,-1397.06,0.00034038,37]
[331457494,1720424825529,-1252.26,0.00034038,48]
[331457495,1720424825573,-1155.33,0.00034038,36]
[331457496,1720424825619,-1514.86,0.00034038,51]
[331457497,1720424825664,-500.0,0.00034038,30]
[331457498,1720424825705,-1252.26,0.00034038,49]
[331457499,1720424825747,-1514.86,0.00034038,52]
[331457500,1720424825788,-1155.33,0.00034038,37]
[331457501,1720424825828,-1397.06,0.00034038,38]
[331457502,1720424825867,-500.0,0.00034038,31]
[331457503,1720424825911,-860.22,0.00034038,30]
[331457504,1720424825951,-1514.98963384,0.00034038,53]
[331457505,1720424825988,-1155.33,0.00034038,38]
[331457506,1720424826027,-1397.06,0.00034038,39]
[331457507,1720424826063,-500.0,0.00034038,32]
[331457508,1720424826100,-860.22,0.00034038,31]
[331457509,1720424826136,-1155.33,0.00034038,39]
[331457510,1720424826171,-860.22,0.00034038,32]
[331457511,1720424826215,-500.0,0.00034038,33]
[331457512,1720424826255,-1155.33,0.00034038,40]
[331457513,1720424826294,-1397.06,0.00034038,40]
[331457514,1720424826333,-860.22,0.00034038,33]
[331457515,1720424826371,-1397.06,0.00034038,41]
[331457516,1720424826408,-1155.33,0.00034038,41]
[331457517,1720424826445,-500.0,0.00034038,34]
[331457518,1720424826482,-860.22,0.00034038,34]
[331457519,1720424826518,-1397.06,0.00034038,42]
[331457520,1720424826557,-1155.33,0.00034038,42]
[331457521,1720424826596,-860.22,0.00034038,35]
[331457522,1720424826634,-1397.06,0.00034038,43]
[331457523,1720424826671,-1155.33,0.00034038,43]
[331457524,1720424826712,-500.0,0.00034038,30]
[331457525,1720424826750,-860.22,0.00034038,36]
[331457526,1720424826788,-1397.06,0.00034038,44]
[331457527,1720424826824,-500.0,0.00034038,35]
[331457528,1720424826867,-500.0,0.00034038,31]
[331457529,1720424826905,-1155.33,0.00034038,44]
[331457530,1720424826944,-860.22,0.00034038,37]
[331457531,1720424826983,-1397.06,0.00034038,45]
[331457532,1720424827021,-500.0,0.00034038,36]
[331457533,1720424827057,-500.0,0.00034038,32]
[331457534,1720424827095,-860.22,0.00034038,38]
[331457535,1720424827336,-1397.06,0.00034038,46]
[331457536,1720424827375,-507.54915036,0.00034038,37]
[331457537,1720424827414,-1155.33,0.00034038,45]
[331457538,1720424827457,-860.22,0.00034038,39]
[331457539,1720424827494,-1397.06,0.00034038,47]
[331457540,1720424827531,-1155.33,0.00034038,46]
[331457541,1720424827568,-860.22,0.00034038,40]
[331457542,1720424827606,-500.0,0.00034038,33]
[331457543,1720424827644,-584.19,0.00034038,34]
[331457544,1720424827686,-1155.33,0.00034038,47]
[331457545,1720424827724,-860.22,0.00034038,41]
[331457546,1720424827762,-1397.06,0.00034038,48]
[331457547,1720424827799,-500.0,0.00034038,34]
[331457548,1720424827835,-1155.33,0.00034038,48]
[331457549,1720424827875,-860.22,0.00034038,42]
[331457550,1720424827915,-1444.12,0.00034038,30]
[331457551,1720424827958,-584.19,0.00034038,35]
[331457552,1720424827997,-500.0,0.00034038,35]
[331457553,1720424828039,-1155.33,0.00034038,49]
[331457554,1720424828080,-860.22,0.00034038,43]
[331457556,1720424828119,-584.19,0.00034038,36]
[331457558,1720424828161,-1397.06,0.00034038,49]
[331457559,1720424828207,-500.0,0.00034038,36]
[331457560,1720424828253,-1155.33,0.00034038,50]
[331457561,1720424828301,-860.22,0.00034038,44]
[331457562,1720424828348,-1444.12,0.00034038,31]
[331457563,1720424828389,-584.19,0.00034038,37]
[331457564,1720424828426,-500.0,0.00034038,37]
[331457565,1720424828472,-1155.33,0.00034038,51]
[331457566,1720424828511,-860.22,0.00034038,45]
[331457567,1720424828551,-1444.12,0.00034038,32]
[331457568,1720424828588,-1397.06,0.00034038,50]
[331457569,1720424828627,-860.22,0.00034038,46]
[331457570,1720424828668,-1444.12,0.00034038,33]
[331457571,1720424828709,-584.19,0.00034038,38]
[331457572,1720424828752,-500.0,0.00034038,38]
[331457573,1720424828790,-1397.06,0.00034038,51]
[331457574,1720424828828,-1155.33,0.00034038,52]
[331457575,1720424828864,-860.22,0.00034038,47]
[331457576,1720424828905,-1444.12,0.00034038,34]
[331457577,1720424828946,-584.19,0.00034038,39]
[331457578,1720424828987,-1155.49515964,0.00034038,53]
[331457579,1720424829029,-500.0,0.00034038,39]
[331457580,1720424829071,-860.22,0.00034038,48]
[331457581,1720424829112,-1397.06,0.00034038,52]
[331457582,1720424829157,-1444.12,0.00034038,35]
[331457583,1720424829202,-1397.23731352,0.00034038,53]
[331457584,1720424829247,-500.0,0.00034038,40]
[331457585,1720424829290,-860.22,0.00034038,49]
[331457586,1720424829334,-1444.12,0.00034038,36]
[331457587,1720424829376,-1252.26,0.00034038,50]
[331457588,1720424829419,-584.19,0.00034038,40]
[331457589,1720424829465,-500.0,0.00034038,41]
[331457590,1720424829507,-860.22,0.00034038,50]
[331457591,1720424829547,-1444.12,0.00034038,37]
[331457592,1720424829589,-1252.26,0.00034038,51]
[331457593,1720424829629,-584.19,0.00034038,41]
[331457594,1720424829672,-860.22,0.00034038,51]
[331457595,1720424829718,-500.0,0.00034038,42]
[331457596,1720424829759,-1252.26,0.00034038,52]
[331457597,1720424829799,-860.22,0.00034038,52]
[331457598,1720424829839,-500.0,0.00034038,43]
[331457599,1720424829878,-584.19,0.00034038,42]
[331457600,1720424829919,-500.0,0.00034038,30]
[331457601,1720424829963,-1252.28264577,0.00034038,53]
[331457602,1720424830005,-1444.12,0.00034038,38]
[331457603,1720424830047,-860.32259386,0.00034038,53]
[331457604,1720424830088,-500.0,0.00034038,44]
[331457605,1720424830128,-584.19,0.00034038,43]
[331457606,1720424830169,-500.0,0.00034038,31]
[331457607,1720424830210,-1444.12,0.00034038,39]
[331457608,1720424830249,-500.0,0.00034038,30]
[331457609,1720424830289,-500.0,0.00034038,45]